[Event "Late-Titled-Tuesday-Blitz-April-02-2024"]
[Site "Chess.com"]
[Date "2024.04.02"]
[Round "1"]
[White "Rsnr"]
[Black "SultaiC"]
[Result "0-1"]
[WhiteElo "2868"]
[BlackElo "2501"]
[TimeControl "180+1"]
[EndTime "14:07:20 PDT"]
[Termination "SultaiC won on time"]

1. d4 {[%clk 0:02:59.6]} 1... Nf6 {[%clk 0:02:59]} 2. c4 {[%clk 0:03:00.3]} 2...
e6 {[%clk 0:02:57.7]} 3. Nf3 {[%clk 0:03:00.6]} 3... d5 {[%clk 0:02:58]} 4. e3
{[%clk 0:03:01.1]} 4... Be7 {[%clk 0:02:58.1]} 5. b3 {[%clk 0:03:01.2]} 5... O-O
{[%clk 0:02:55.2]} 6. Bd3 {[%clk 0:03:01.7]} 6... c6 {[%clk 0:02:52.9]} 7. O-O
{[%clk 0:03:01.7]} 7... Nbd7 {[%clk 0:02:50.8]} 8. Bb2 {[%clk 0:03:02.2]} 8...
Re8 {[%clk 0:02:51.1]} 9. Nbd2 {[%clk 0:03:00.8]} 9... b6 {[%clk 0:02:48.7]} 10.
e4 {[%clk 0:03:00.4]} 10... dxe4 {[%clk 0:02:47.3]} 11. Nxe4 {[%clk 0:03:01.3]}
11... Bb7 {[%clk 0:02:47.1]} 12. Qe2 {[%clk 0:02:50.5]} 12... Qc7 {[%clk
0:02:38]} 13. Rad1 {[%clk 0:02:45.8]} 13... Rad8 {[%clk 0:02:37.5]} 14. h3
{[%clk 0:01:58.3]} 14... Nxe4 {[%clk 0:02:33.9]} 15. Bxe4 {[%clk 0:01:58]} 15...
Nf6 {[%clk 0:02:32.6]} 16. Bc2 {[%clk 0:01:57.7]} 16... Bd6 {[%clk 0:02:25.6]}
17. a3 {[%clk 0:01:41.2]} 17... a5 {[%clk 0:02:24.4]} 18. Rfe1 {[%clk
0:01:39.3]} 18... Qe7 {[%clk 0:02:18.8]} 19. a4 {[%clk 0:01:32.6]} 19... Bb4
{[%clk 0:02:17.2]} 20. Rf1 {[%clk 0:01:33.1]} 20... h6 {[%clk 0:02:09.2]} 21.
Ne5 {[%clk 0:01:21.6]} 21... c5 {[%clk 0:02:08.3]} 22. Nd3 {[%clk 0:01:21.7]}
22... cxd4 {[%clk 0:02:03.7]} 23. Nxb4 {[%clk 0:01:22.1]} 23... Qxb4 {[%clk
0:02:01.9]} 24. Bxd4 {[%clk 0:01:22.4]} 24... e5 {[%clk 0:01:40.3]} 25. Be3
{[%clk 0:00:41.9]} 25... Be4 {[%clk 0:01:34.6]} 26. Bd2 {[%clk 0:00:37.1]} 26...
Rxd2 {[%clk 0:01:31.4]} 27. Qxd2 {[%clk 0:00:36.9]} 27... Qc5 {[%clk 0:01:30.3]}
28. Bxe4 {[%clk 0:00:35.7]} 28... Nxe4 {[%clk 0:01:30.7]} 29. Qe3 {[%clk
0:00:36.4]} 29... Qc6 {[%clk 0:01:25.5]} 30. Rd5 {[%clk 0:00:36.1]} 30... Nc5
{[%clk 0:01:21.3]} 31. Rxe5 {[%clk 0:00:36]} 31... Rd8 {[%clk 0:01:21.9]} 32.
Re1 {[%clk 0:00:24.4]} 32... Rd6 {[%clk 0:01:21.7]} 33. Re8+ {[%clk 0:00:24]}
33... Kh7 {[%clk 0:01:22.2]} 34. Qe7 {[%clk 0:00:18.4]} 34... Rg6 {[%clk
0:01:22.7]} 35. f3 {[%clk 0:00:13]} 35... Qxf3 {[%clk 0:01:20.1]} 36. Qe2 {[%clk
0:00:12.4]} 36... Qxh3 {[%clk 0:01:18.6]} 37. Qf2 {[%clk 0:00:12]} 37... Nd3
{[%clk 0:01:17.4]} 38. Qc2 {[%clk 0:00:02.4]} 38... Qf5 {[%clk 0:01:06.8]} 39.
R1e2 {[%clk 0:00:02.1]} 39... Qc5+ {[%clk 0:01:06.5]} 40. R8e3 {[%clk
0:00:01.8]} 40... Nf4 {[%clk 0:01:05.5]} 41. Re1 {[%clk 0:00:01.7]} 41... Nxg2
{[%clk 0:01:05.3]} 42. Qxg2 {[%clk 0:00:02.3]} 42... Rxg2+ {[%clk 0:01:04.8]}
43. Kxg2 {[%clk 0:00:03.2]} 43... Qg5+ {[%clk 0:01:05.3]} 44. Rg3 {[%clk
0:00:03.7]} 44... Qd2+ {[%clk 0:01:05.4]} 45. Kf1 {[%clk 0:00:04.4]} 45... h5
{[%clk 0:01:05.2]} 46. Re7 {[%clk 0:00:02.3]} 46... h4 {[%clk 0:01:02.2]} 47.
Rf3 {[%clk 0:00:01.7]} 47... Qd1+ {[%clk 0:01:02.1]} 48. Kf2 {[%clk 0:00:02.4]}
48... Qd2+ {[%clk 0:01:00.3]} 49. Kf1 {[%clk 0:00:02.7]} 49... f6 {[%clk
0:00:59.2]} 50. Re4 {[%clk 0:00:02.2]} 50... Qg5 {[%clk 0:00:56.1]} 51. Rff4
{[%clk 0:00:01.9]} 51... Qg3 {[%clk 0:00:53]} 52. Rxh4+ {[%clk 0:00:02.4]} 52...
Kg8 {[%clk 0:00:53.2]} 53. Rhg4 {[%clk 0:00:02.9]} 53... Qf3+ {[%clk 0:00:53]}
54. Ke1 {[%clk 0:00:03.1]} 54... f5 {[%clk 0:00:53.6]} 55. Re8+ {[%clk
0:00:02.7]} 55... Kf7 {[%clk 0:00:54.3]} 0-1

[Event "Late-Titled-Tuesday-Blitz-April-02-2024"]
[Site "Chess.com"]
[Date "2024.04.02"]
[Round "1"]
[White "AlexeiShirov"]
[Black "becemix"]
[Result "1/2-1/2"]
[WhiteElo "2821"]
[BlackElo "2467"]
[TimeControl "180+1"]
[EndTime "14:07:21 PDT"]
[Termination "Game drawn by repetition"]

1. e4 {[%clk 0:03:00.9]} 1... e5 {[%clk 0:02:55.8]} 2. Nf3 {[%clk 0:03:00.6]}
2... Nc6 {[%clk 0:02:55.7]} 3. Bc4 {[%clk 0:02:59.5]} 3... Bc5 {[%clk
0:02:52.9]} 4. c3 {[%clk 0:02:58.7]} 4... Nf6 {[%clk 0:02:52.7]} 5. d4 {[%clk
0:02:57.9]} 5... exd4 {[%clk 0:02:51.6]} 6. e5 {[%clk 0:02:57.9]} 6... d5 {[%clk
0:02:50.7]} 7. Bb5 {[%clk 0:02:58]} 7... Ne4 {[%clk 0:02:50.6]} 8. cxd4 {[%clk
0:02:57.6]} 8... Bb4+ {[%clk 0:02:44.4]} 9. Bd2 {[%clk 0:02:54.2]} 9... Nxd2
{[%clk 0:02:39.4]} 10. Nbxd2 {[%clk 0:02:52.2]} 10... O-O {[%clk 0:02:39.6]} 11.
O-O {[%clk 0:02:29.8]} 11... Ne7 {[%clk 0:02:32.1]} 12. Bd3 {[%clk 0:02:17.3]}
12... Bf5 {[%clk 0:02:28.9]} 13. Nb3 {[%clk 0:02:16.1]} 13... Bxd3 {[%clk
0:02:26]} 14. Qxd3 {[%clk 0:02:15.4]} 14... Ng6 {[%clk 0:02:26.3]} 15. a3 {[%clk
0:02:09.2]} 15... Be7 {[%clk 0:02:25.3]} 16. Na5 {[%clk 0:02:08.8]} 16... c6
{[%clk 0:02:15]} 17. Nxb7 {[%clk 0:02:04.2]} 17... Qb6 {[%clk 0:02:14.7]} 18.
Nd6 {[%clk 0:02:02.3]} 18... Bxd6 {[%clk 0:02:14.4]} 19. exd6 {[%clk 0:02:00.7]}
19... Rad8 {[%clk 0:02:10.3]} 20. b4 {[%clk 0:01:47.3]} 20... Rxd6 {[%clk
0:02:09.9]} 21. Rfc1 {[%clk 0:01:41.2]} 21... Rf6 {[%clk 0:02:09.4]} 22. Rc5
{[%clk 0:01:38.1]} 22... Re8 {[%clk 0:02:06.1]} 23. g3 {[%clk 0:01:33.7]} 23...
Qb7 {[%clk 0:01:34.3]} 24. Rac1 {[%clk 0:01:32.1]} 24... Qd7 {[%clk 0:01:34]}
25. Ne1 {[%clk 0:01:09.8]} 25... h5 {[%clk 0:01:22.4]} 26. h4 {[%clk 0:01:08]}
26... Qg4 {[%clk 0:01:06.1]} 27. Ng2 {[%clk 0:01:06.1]} 27... Ree6 {[%clk
0:00:57.4]} 28. R5c2 {[%clk 0:00:34.9]} 28... Rf3 {[%clk 0:00:55.2]} 29. Qd2
{[%clk 0:00:33.7]} 29... Rxa3 {[%clk 0:00:52.2]} 30. Rxc6 {[%clk 0:00:31.9]}
30... Rxc6 {[%clk 0:00:50.5]} 31. Rxc6 {[%clk 0:00:31.3]} 31... Ra1+ {[%clk
0:00:50.8]} 32. Rc1 {[%clk 0:00:27.6]} 32... Rxc1+ {[%clk 0:00:45.9]} 33. Qxc1
{[%clk 0:00:27.4]} 33... Qxd4 {[%clk 0:00:46]} 34. Qc8+ {[%clk 0:00:27.2]} 34...
Kh7 {[%clk 0:00:46.1]} 35. Qf5 {[%clk 0:00:27.6]} 35... Qd1+ {[%clk 0:00:34.7]}
36. Kh2 {[%clk 0:00:26.9]} 36... d4 {[%clk 0:00:35.3]} 37. Qxf7 {[%clk
0:00:22.6]} 37... d3 {[%clk 0:00:30]} 38. Qf5 {[%clk 0:00:20]} 38... Qe2 {[%clk
0:00:27.7]} 39. Nf4 {[%clk 0:00:17.8]} 39... Qxf2+ {[%clk 0:00:25.1]} 40. Kh3
{[%clk 0:00:18.1]} 40... Qf1+ {[%clk 0:00:18.9]} 41. Kh2 {[%clk 0:00:18.3]}
41... Qf2+ {[%clk 0:00:15.5]} 42. Kh3 {[%clk 0:00:18.5]} 42... Qf1+ {[%clk
0:00:15.7]} 43. Kh2 {[%clk 0:00:18.8]} 43... Qf2+ {[%clk 0:00:16]} 1/2-1/2

[Event "Late-Titled-Tuesday-Blitz-April-02-2024"]
[Site "Chess.com"]
[Date "2024.04.02"]
[Round "1"]
[White "Resignify"]
[Black "Bilan_Danila"]
[Result "0-1"]
[WhiteElo "2247"]
[BlackElo "2594"]
[TimeControl "180+1"]
[EndTime "14:07:22 PDT"]
[Termination "Bilan_Danila won by resignation"]

1. e4 {[%clk 0:02:59.2]} 1... c6 {[%clk 0:02:54.5]} 2. d4 {[%clk 0:02:58.5]}
2... d5 {[%clk 0:02:54.1]} 3. Nd2 {[%clk 0:02:58.5]} 3... dxe4 {[%clk
0:02:53.9]} 4. Nxe4 {[%clk 0:02:59.4]} 4... Bf5 {[%clk 0:02:54]} 5. Ng3 {[%clk
0:02:59.2]} 5... Bg6 {[%clk 0:02:53.6]} 6. h4 {[%clk 0:02:59.4]} 6... h6 {[%clk
0:02:53.5]} 7. Nh3 {[%clk 0:02:59.6]} 7... e5 {[%clk 0:02:49.2]} 8. dxe5 {[%clk
0:02:56.3]} 8... Qa5+ {[%clk 0:02:45.9]} 9. c3 {[%clk 0:02:51.6]} 9... Qxe5+
{[%clk 0:02:46.4]} 10. Qe2 {[%clk 0:02:50.3]} 10... Qxe2+ {[%clk 0:02:45.2]} 11.
Bxe2 {[%clk 0:02:50]} 11... Nf6 {[%clk 0:02:41]} 12. Nf4 {[%clk 0:02:49.7]}
12... Bh7 {[%clk 0:02:40.1]} 13. O-O {[%clk 0:02:46.3]} 13... Bc5 {[%clk
0:02:36.3]} 14. Bd3 {[%clk 0:02:36.7]} 14... O-O {[%clk 0:02:29]} 15. Bxh7+
{[%clk 0:02:31.6]} 15... Kxh7 {[%clk 0:02:29.9]} 16. Re1 {[%clk 0:02:24.4]}
16... Nbd7 {[%clk 0:02:22]} 17. Be3 {[%clk 0:02:22.6]} 17... Rfe8 {[%clk
0:02:20.1]} 18. Nf5 {[%clk 0:02:11.9]} 18... Bxe3 {[%clk 0:02:09.3]} 19. Rxe3
{[%clk 0:02:05.7]} 19... Rxe3 {[%clk 0:02:06.9]} 20. Nxe3 {[%clk 0:02:04.7]}
20... Nc5 {[%clk 0:01:46.6]} 21. Rd1 {[%clk 0:01:59]} 21... g5 {[%clk
0:01:37.9]} 22. hxg5 {[%clk 0:01:57.5]} 22... hxg5 {[%clk 0:01:38.8]} 23. Nh3
{[%clk 0:01:50.6]} 23... Kg6 {[%clk 0:01:33.7]} 24. Rd6 {[%clk 0:01:44.3]} 24...
Ne4 {[%clk 0:01:30.8]} 25. Rd4 {[%clk 0:01:35.9]} 25... Re8 {[%clk 0:01:27.1]}
26. f3 {[%clk 0:01:23.8]} 26... Nxc3 {[%clk 0:01:11.5]} 27. bxc3 {[%clk
0:01:07.6]} 27... Rxe3 {[%clk 0:01:10.7]} 28. Rd6 {[%clk 0:00:53.4]} 28... Rxc3
{[%clk 0:01:03.4]} 29. Nf2 {[%clk 0:00:53.1]} 29... Kf5 {[%clk 0:00:57]} 30.
Rxf6+ {[%clk 0:00:52.2]} 30... Kxf6 {[%clk 0:00:57.2]} 31. Ne4+ {[%clk
0:00:52.9]} 31... Ke5 {[%clk 0:00:57.5]} 32. Nxc3 {[%clk 0:00:53.8]} 32... b5
{[%clk 0:00:55.1]} 33. Kf2 {[%clk 0:00:52.7]} 33... Kd4 {[%clk 0:00:50.5]} 34.
Ne4 {[%clk 0:00:49.1]} 34... a5 {[%clk 0:00:47.3]} 35. Nxg5 {[%clk 0:00:45.4]}
35... a4 {[%clk 0:00:47.7]} 36. Ke2 {[%clk 0:00:38.6]} 36... Kc3 {[%clk
0:00:47.3]} 37. Kd1 {[%clk 0:00:24.5]} 37... Kb2 {[%clk 0:00:45.5]} 38. Nxf7
{[%clk 0:00:22.3]} 38... Kxa2 {[%clk 0:00:39.5]} 39. Ne5 {[%clk 0:00:21.4]}
39... b4 {[%clk 0:00:39]} 40. Nd3 {[%clk 0:00:20.6]} 40... b3 {[%clk 0:00:34.6]}
41. g4 {[%clk 0:00:18.1]} 41... b2 {[%clk 0:00:30.4]} 42. Nxb2 {[%clk
0:00:16.4]} 42... Kxb2 {[%clk 0:00:31.3]} 43. g5 {[%clk 0:00:17.1]} 43... a3
{[%clk 0:00:31.5]} 44. g6 {[%clk 0:00:17.4]} 44... a2 {[%clk 0:00:32.1]} 45. g7
{[%clk 0:00:17.7]} 45... a1=Q+ {[%clk 0:00:32.5]} 46. Ke2 {[%clk 0:00:18.5]}
46... Qg1 {[%clk 0:00:32.9]} 0-1

[Event "Late-Titled-Tuesday-Blitz-April-02-2024"]
[Site "Chess.com"]
[Date "2024.04.02"]
[Round "1"]
[White "GoValya"]
[Black "Russian_berezka"]
[Result "0-1"]
[WhiteElo "2241"]
[BlackElo "2585"]
[TimeControl "180+1"]
[EndTime "14:07:23 PDT"]
[Termination "Russian_berezka won by resignation"]

1. d4 {[%clk 0:03:00.9]} 1... g6 {[%clk 0:02:48]} 2. c4 {[%clk 0:03:00.4]} 2...
Bg7 {[%clk 0:02:46.7]} 3. Nc3 {[%clk 0:03:00.5]} 3... f5 {[%clk 0:02:33.9]} 4.
e4 {[%clk 0:02:59.1]} 4... fxe4 {[%clk 0:02:31.9]} 5. Nxe4 {[%clk 0:02:59.1]}
5... Nf6 {[%clk 0:02:32.8]} 6. Nxf6+ {[%clk 0:02:56.1]} 6... exf6 {[%clk
0:02:33.7]} 7. Nf3 {[%clk 0:02:52.2]} 7... O-O {[%clk 0:02:31.9]} 8. Be2 {[%clk
0:02:51.5]} 8... d5 {[%clk 0:02:32]} 9. cxd5 {[%clk 0:02:50.1]} 9... Nd7 {[%clk
0:02:28.8]} 10. Qb3 {[%clk 0:02:34.2]} 10... Kh8 {[%clk 0:02:15]} 11. d6 {[%clk
0:02:25.1]} 11... cxd6 {[%clk 0:02:04.2]} 12. O-O {[%clk 0:02:25.2]} 12... Nb6
{[%clk 0:02:03.7]} 13. Bf4 {[%clk 0:02:21.2]} 13... Re8 {[%clk 0:02:01.1]} 14.
Bb5 {[%clk 0:02:19.1]} 14... Bd7 {[%clk 0:01:58.5]} 15. d5 {[%clk 0:02:01.4]}
15... Rc8 {[%clk 0:01:50.6]} 16. Bxd7 {[%clk 0:01:51.4]} 16... Qxd7 {[%clk
0:01:51.5]} 17. Rad1 {[%clk 0:01:39.4]} 17... Re4 {[%clk 0:01:42.8]} 18. Be3
{[%clk 0:01:38.8]} 18... Qd8 {[%clk 0:01:31.9]} 19. Nd4 {[%clk 0:01:33.1]} 19...
Nd7 {[%clk 0:01:20]} 20. Ne6 {[%clk 0:01:31.4]} 20... Qe8 {[%clk 0:01:20.6]} 21.
Bxa7 {[%clk 0:01:21.2]} 21... b6 {[%clk 0:01:17.9]} 22. a4 {[%clk 0:01:14]}
22... Nc5 {[%clk 0:01:18.1]} 23. Nxc5 {[%clk 0:01:09.1]} 23... bxc5 {[%clk
0:01:18.1]} 24. a5 {[%clk 0:01:04]} 24... Rb4 {[%clk 0:01:18.2]} 25. Qc2 {[%clk
0:00:56.3]} 25... Qb5 {[%clk 0:01:16.7]} 26. Bb6 {[%clk 0:00:51.9]} 26... Rxb2
{[%clk 0:01:16.7]} 27. Qe4 {[%clk 0:00:51.4]} 27... Re2 {[%clk 0:01:16.5]} 28.
Qg4 {[%clk 0:00:51.2]} 28... Rce8 {[%clk 0:01:14.8]} 29. h3 {[%clk 0:00:46.3]}
29... f5 {[%clk 0:01:14.7]} 30. Qh4 {[%clk 0:00:43]} 30... Bd4 {[%clk
0:01:12.7]} 31. Rb1 {[%clk 0:00:35]} 31... Qa6 {[%clk 0:00:38.8]} 32. Rbd1
{[%clk 0:00:27.6]} 32... Bg7 {[%clk 0:00:35.6]} 33. Qg5 {[%clk 0:00:21.6]} 33...
Qc4 {[%clk 0:00:33.5]} 34. Rd2 {[%clk 0:00:20.1]} 34... Re1 {[%clk 0:00:32.4]}
35. Rxe1 {[%clk 0:00:19.5]} 35... Rxe1+ {[%clk 0:00:33.3]} 36. Kh2 {[%clk
0:00:20]} 36... Be5+ {[%clk 0:00:33.9]} 37. g3 {[%clk 0:00:18.8]} 37... Qe4
{[%clk 0:00:27.4]} 38. Qd8+ {[%clk 0:00:12.4]} 38... Kg7 {[%clk 0:00:27.7]} 39.
Qe7+ {[%clk 0:00:12.8]} 39... Kh6 {[%clk 0:00:28.2]} 40. f3 {[%clk 0:00:05.5]}
40... Bxg3+ {[%clk 0:00:25.5]} 41. Kxg3 {[%clk 0:00:05.1]} 41... Qxe7 {[%clk
0:00:24.8]} 0-1

[Event "Late-Titled-Tuesday-Blitz-April-02-2024"]
[Site "Chess.com"]
[Date "2024.04.02"]
[Round "1"]
[White "santosalberto1987"]
[Black "Joshuachick"]
[Result "1-0"]
[WhiteElo "2504"]
[BlackElo "2873"]
[TimeControl "180+1"]
[EndTime "14:07:24 PDT"]
[Termination "santosalberto1987 won on time"]

1. e4 {[%clk 0:03:00.9]} 1... c6 {[%clk 0:02:59.8]} 2. c4 {[%clk 0:02:57.3]}
2... d5 {[%clk 0:02:57.8]} 3. exd5 {[%clk 0:02:58.2]} 3... cxd5 {[%clk
0:02:58.6]} 4. cxd5 {[%clk 0:02:58.4]} 4... Nf6 {[%clk 0:02:58.1]} 5. Qa4+
{[%clk 0:02:58.8]} 5... Nbd7 {[%clk 0:02:58.3]} 6. Bc4 {[%clk 0:02:58.8]} 6...
g6 {[%clk 0:02:55.3]} 7. Nc3 {[%clk 0:02:58.5]} 7... Bg7 {[%clk 0:02:55.7]} 8.
Nf3 {[%clk 0:02:58.8]} 8... O-O {[%clk 0:02:56.4]} 9. d3 {[%clk 0:02:59.2]} 9...
a6 {[%clk 0:02:48.9]} 10. Qa3 {[%clk 0:02:58.9]} 10... Rb8 {[%clk 0:02:47.5]}
11. Bf4 {[%clk 0:02:58.2]} 11... b5 {[%clk 0:02:40.4]} 12. Bxb8 {[%clk
0:02:55.7]} 12... bxc4 {[%clk 0:02:41.1]} 13. Bf4 {[%clk 0:02:52.3]} 13... cxd3
{[%clk 0:02:37.7]} 14. O-O {[%clk 0:02:48.3]} 14... Nb6 {[%clk 0:02:38.2]} 15.
Rad1 {[%clk 0:02:38]} 15... Bf5 {[%clk 0:02:16]} 16. Qxa6 {[%clk 0:02:23.9]}
16... Nbxd5 {[%clk 0:02:12.8]} 17. Be5 {[%clk 0:02:23.9]} 17... Nxc3 {[%clk
0:02:00.1]} 18. Bxc3 {[%clk 0:02:23.5]} 18... Qd5 {[%clk 0:02:00.9]} 19. a4
{[%clk 0:02:11.1]} 19... Be4 {[%clk 0:01:49.9]} 20. Qb5 {[%clk 0:02:02.4]} 20...
Qa8 {[%clk 0:01:40.4]} 21. Rfe1 {[%clk 0:01:56.7]} 21... Rd8 {[%clk 0:01:25.3]}
22. Ng5 {[%clk 0:01:30]} 22... Rd5 {[%clk 0:00:30.7]} 23. Nxe4 {[%clk
0:01:29.7]} 23... Rxb5 {[%clk 0:00:16.5]} 24. Nxf6+ {[%clk 0:01:29.8]} 24...
Bxf6 {[%clk 0:00:16.1]} 25. axb5 {[%clk 0:01:29.3]} 25... Qd5 {[%clk 0:00:16.2]}
26. Bxf6 {[%clk 0:01:27.2]} 26... exf6 {[%clk 0:00:15.4]} 27. Rd2 {[%clk
0:01:20.8]} 27... Qxb5 {[%clk 0:00:14.1]} 28. g3 {[%clk 0:00:46.6]} 28... g5
{[%clk 0:00:13]} 29. Re3 {[%clk 0:00:44.9]} 29... h5 {[%clk 0:00:13.1]} 30.
Rexd3 {[%clk 0:00:44.8]} 30... Qc6 {[%clk 0:00:11.2]} 31. b4 {[%clk 0:00:37.3]}
31... Kg7 {[%clk 0:00:10.2]} 32. Rd5 {[%clk 0:00:33.5]} 32... Kg6 {[%clk
0:00:07.1]} 33. b5 {[%clk 0:00:33.2]} 33... Qb7 {[%clk 0:00:06.6]} 34. h4 {[%clk
0:00:31.4]} 34... g4 {[%clk 0:00:04]} 35. R2d4 {[%clk 0:00:27.4]} 35... f5
{[%clk 0:00:02.8]} 36. b6 {[%clk 0:00:25.1]} 36... f6 {[%clk 0:00:02.6]} 37. Rd6
{[%clk 0:00:24]} 37... Qf3 {[%clk 0:00:02.1]} 38. Rd7 {[%clk 0:00:20.5]} 1-0

[Event "Late-Titled-Tuesday-Blitz-April-02-2024"]
[Site "Chess.com"]
[Date "2024.04.02"]
[Round "1"]
[White "semchik73"]
[Black "dedpihto_v_kozhanom_palto"]
[Result "0-1"]
[WhiteElo "2412"]
[BlackElo "2713"]
[TimeControl "180+1"]
[EndTime "14:07:25 PDT"]
[Termination "dedpihto_v_kozhanom_palto won by checkmate"]

1. Nf3 {[%clk 0:02:58.3]} 1... g6 {[%clk 0:03:00.5]} 2. c4 {[%clk 0:02:57.2]}
2... Bg7 {[%clk 0:03:00.9]} 3. d4 {[%clk 0:02:56.5]} 3... d6 {[%clk 0:03:01.2]}
4. Nc3 {[%clk 0:02:56.7]} 4... Nc6 {[%clk 0:03:01.5]} 5. d5 {[%clk 0:02:56.7]}
5... Nb8 {[%clk 0:02:58.9]} 6. e4 {[%clk 0:02:54.2]} 6... e5 {[%clk 0:02:59.5]}
7. dxe6 {[%clk 0:02:53.7]} 7... Bxe6 {[%clk 0:02:59.1]} 8. Be3 {[%clk
0:02:54.3]} 8... Nf6 {[%clk 0:02:58.4]} 9. h3 {[%clk 0:02:52.5]} 9... O-O {[%clk
0:02:58.5]} 10. Be2 {[%clk 0:02:52.2]} 10... a5 {[%clk 0:02:57.9]} 11. O-O
{[%clk 0:02:51.7]} 11... Na6 {[%clk 0:02:58.5]} 12. Qd2 {[%clk 0:02:50.2]} 12...
Re8 {[%clk 0:02:58.3]} 13. Bh6 {[%clk 0:02:49.2]} 13... Bh8 {[%clk 0:02:58.3]}
14. Rad1 {[%clk 0:02:45.7]} 14... Nc5 {[%clk 0:02:55.5]} 15. Qc2 {[%clk
0:02:44.1]} 15... Bd7 {[%clk 0:02:54.6]} 16. Bg5 {[%clk 0:02:36.9]} 16... Bc6
{[%clk 0:02:52.8]} 17. e5 {[%clk 0:02:34.8]} 17... Bxf3 {[%clk 0:02:51.9]} 18.
Bxf3 {[%clk 0:02:30.3]} 18... Rxe5 {[%clk 0:02:51.5]} 19. Bf4 {[%clk 0:02:28.5]}
19... Re8 {[%clk 0:02:51.4]} 20. Bg5 {[%clk 0:02:25.1]} 20... Qd7 {[%clk
0:02:50.1]} 21. Nd5 {[%clk 0:02:14.3]} 21... Nxd5 {[%clk 0:02:49.5]} 22. Bxd5
{[%clk 0:02:15.1]} 22... Bg7 {[%clk 0:02:25.2]} 23. h4 {[%clk 0:02:08.1]} 23...
h6 {[%clk 0:02:24.7]} 24. Be3 {[%clk 0:02:03.5]} 24... Qg4 {[%clk 0:02:23.7]}
25. f3 {[%clk 0:01:58]} 25... Qxh4 {[%clk 0:02:21.1]} 26. Bxc5 {[%clk
0:01:55.3]} 26... dxc5 {[%clk 0:02:22]} 27. Qxg6 {[%clk 0:01:55.4]} 27... Re7
{[%clk 0:02:03.1]} 28. g3 {[%clk 0:01:35.1]} 28... Qg5 {[%clk 0:01:59.2]} 29.
Qxg5 {[%clk 0:01:27.9]} 29... hxg5 {[%clk 0:02:00.1]} 30. b3 {[%clk 0:01:24]}
30... a4 {[%clk 0:01:51.2]} 31. Bxb7 {[%clk 0:01:23.2]} 31... Rb8 {[%clk
0:01:51.2]} 32. Be4 {[%clk 0:01:20.2]} 32... axb3 {[%clk 0:01:51]} 33. axb3
{[%clk 0:01:21.1]} 33... Bd4+ {[%clk 0:01:49.4]} 34. Kg2 {[%clk 0:01:20.3]}
34... Rxb3 {[%clk 0:01:49.9]} 35. Rd2 {[%clk 0:01:14.2]} 35... Kg7 {[%clk
0:01:48.8]} 36. Rh1 {[%clk 0:01:11.2]} 36... g4 {[%clk 0:01:47.9]} 37. Rh7+
{[%clk 0:01:10.2]} 37... Kg8 {[%clk 0:01:47.6]} 38. Rh4 {[%clk 0:01:06.9]} 38...
gxf3+ {[%clk 0:01:46.7]} 39. Bxf3 {[%clk 0:01:07.8]} 39... Ree3 {[%clk
0:01:45.4]} 40. Rg4+ {[%clk 0:01:06.7]} 40... Kf8 {[%clk 0:01:45.8]} 41. Bd5
{[%clk 0:01:05]} 41... Re1 {[%clk 0:01:45]} 42. Ra2 {[%clk 0:01:01.3]} 42... Rc3
{[%clk 0:01:31.1]} 43. Rf4 {[%clk 0:00:57.4]} 43... f6 {[%clk 0:01:29.1]} 44.
Ra8+ {[%clk 0:00:52.6]} 44... Ke7 {[%clk 0:01:28.8]} 45. Rc8 {[%clk 0:00:51.8]}
45... Be5 {[%clk 0:01:25.5]} 46. Rg4 {[%clk 0:00:48.1]} 46... Rc2+ {[%clk
0:01:18.1]} 47. Kf3 {[%clk 0:00:48.3]} 47... f5 {[%clk 0:01:00.9]} 48. Rg6
{[%clk 0:00:42.2]} 48... Bd4 {[%clk 0:00:56.9]} 49. Rxc7+ {[%clk 0:00:32.4]}
49... Kd8 {[%clk 0:00:56.8]} 50. Kf4 {[%clk 0:00:14.1]} 50... Rf2+ {[%clk
0:00:50.4]} 51. Kg5 {[%clk 0:00:13.8]} 51... Kxc7 {[%clk 0:00:50.4]} 52. Rg7+
{[%clk 0:00:13.4]} 52... Bxg7 {[%clk 0:00:47.4]} 53. Kg6 {[%clk 0:00:13.7]}
53... Bd4 {[%clk 0:00:46.8]} 54. Kf7 {[%clk 0:00:14.6]} 54... Rg1 {[%clk
0:00:45.1]} 55. g4 {[%clk 0:00:14.8]} 55... fxg4+ {[%clk 0:00:44.8]} 56. Ke6
{[%clk 0:00:15.7]} 56... g3 {[%clk 0:00:45.1]} 57. Be4 {[%clk 0:00:16]} 57...
Re1 {[%clk 0:00:44.6]} 58. Kd5 {[%clk 0:00:16.9]} 58... Rf6 {[%clk 0:00:42]} 59.
Bf5 {[%clk 0:00:16.1]} 59... Rd6# {[%clk 0:00:42.2]} 0-1

[Event "Late-Titled-Tuesday-Blitz-April-02-2024"]
[Site "Chess.com"]
[Date "2024.04.02"]
[Round "1"]
[White "Zhigalko_Sergei"]
[Black "Jahonas"]
[Result "0-1"]
[WhiteElo "2871"]
[BlackElo "2503"]
[TimeControl "180+1"]
[EndTime "14:07:26 PDT"]
[Termination "Jahonas won on time"]

1. e4 {[%clk 0:03:00.9]} 1... c6 {[%clk 0:02:59.4]} 2. d4 {[%clk 0:03:00.7]}
2... d5 {[%clk 0:02:59.5]} 3. e5 {[%clk 0:02:56.5]} 3... Bf5 {[%clk 0:02:53.7]}
4. Nf3 {[%clk 0:02:57.4]} 4... e6 {[%clk 0:02:53.3]} 5. Be2 {[%clk 0:02:57.4]}
5... Nd7 {[%clk 0:02:52.6]} 6. O-O {[%clk 0:02:57.4]} 6... Ne7 {[%clk
0:02:52.9]} 7. Nbd2 {[%clk 0:02:57.1]} 7... h6 {[%clk 0:02:53.2]} 8. a4 {[%clk
0:02:56.9]} 8... a5 {[%clk 0:02:50.4]} 9. Nb3 {[%clk 0:02:53.7]} 9... Bh7 {[%clk
0:02:48.8]} 10. Bd2 {[%clk 0:02:48.6]} 10... b6 {[%clk 0:02:42.5]} 11. Rc1
{[%clk 0:02:43]} 11... Nf5 {[%clk 0:02:37.2]} 12. c4 {[%clk 0:02:42.5]} 12...
Be7 {[%clk 0:02:30.9]} 13. cxd5 {[%clk 0:02:34.1]} 13... cxd5 {[%clk 0:02:31]}
14. Bb5 {[%clk 0:02:28.5]} 14... O-O {[%clk 0:02:30.5]} 15. Qe2 {[%clk
0:02:23.3]} 15... Ra7 {[%clk 0:02:24.2]} 16. Rc6 {[%clk 0:01:57]} 16... Nb8
{[%clk 0:02:20.2]} 17. Rcc1 {[%clk 0:01:52.2]} 17... Rc7 {[%clk 0:02:17]} 18. g3
{[%clk 0:01:36.7]} 18... Qc8 {[%clk 0:02:08.5]} 19. g4 {[%clk 0:01:00.4]} 19...
Nh4 {[%clk 0:02:05.6]} 20. Nxh4 {[%clk 0:01:00.8]} 20... Bxh4 {[%clk 0:02:05]}
21. f4 {[%clk 0:01:01.2]} 21... Be7 {[%clk 0:02:00.1]} 22. Be3 {[%clk
0:00:35.8]} 22... Rc2 {[%clk 0:01:42.6]} 23. Rxc2 {[%clk 0:00:33.5]} 23... Qxc2
{[%clk 0:01:41.8]} 24. Qxc2 {[%clk 0:00:28.7]} 24... Bxc2 {[%clk 0:01:42.7]} 25.
Na1 {[%clk 0:00:25.1]} 25... Be4 {[%clk 0:01:35.8]} 26. Rc1 {[%clk 0:00:24.2]}
26... Bb4 {[%clk 0:01:30]} 27. Nc2 {[%clk 0:00:18.7]} 27... Be7 {[%clk 0:01:08]}
28. Ne1 {[%clk 0:00:18.7]} 28... Bh4 {[%clk 0:01:00.3]} 29. Ng2 {[%clk
0:00:16.4]} 29... Be7 {[%clk 0:00:42.4]} 30. Rc7 {[%clk 0:00:15.7]} 30... Bb4
{[%clk 0:00:38.5]} 31. Kf2 {[%clk 0:00:10.6]} 31... Bb1 {[%clk 0:00:30.7]} 32.
Ne1 {[%clk 0:00:06.3]} 32... Ba2 {[%clk 0:00:30]} 33. Nd3 {[%clk 0:00:03.8]}
33... Bc4 {[%clk 0:00:21.3]} 34. Nxb4 {[%clk 0:00:03.6]} 34... axb4 {[%clk
0:00:19.1]} 35. Bd2 {[%clk 0:00:01.5]} 35... Bxb5 {[%clk 0:00:16.6]} 36. axb5
{[%clk 0:00:02.4]} 36... Rd8 {[%clk 0:00:17]} 37. Bxb4 {[%clk 0:00:02.4]} 37...
f6 {[%clk 0:00:12.8]} 38. Bd6 {[%clk 0:00:01.3]} 38... fxe5 {[%clk 0:00:12.6]}
0-1